Workbook

Sheet Лист1
A1: Школа | C1: МОУ "Яльгелевский образовательный центр" | F1: Утвердил: | G1: должность | H1: директор МОУ "Яльгелевский образовательный центр"
A2: Типовое примерное меню приготавливаемых блюд | G2: фамилия | H2: Т.Н. Сергеева
A3: Возрастная категория | E3: 7-11 лет | G3: дата | J3: 2025
H4: день | I4: месяц | J4: год
A5: Неделя | B5: День недели | C5: Прием пищи | D5: Раздел меню | E5: Блюда | F5: Вес блюда, г | G5: Белки | H5: Жиры | I5: Углеводы | J5: Калорийность | K5: № рецептуры | L5: Цена
A6: 1 | B6: 1 | C6: Завтрак | D6: гор.блюдо | E6: каша рисовая молочная с маслом сливочным | F6: 255 | G6: 7.3 | H6: 7.6 | I6: 47.4 | J6: 287.5 | K6: 184
D7: гор.напиток | E7: чай с сахаром | F7: 200 | G7: 0.2 | H7: 0 | I7: 15 | J7: 60.5 | K7: 430
D8: хлеб | E8: батон обогащенный | F8: 40 | G8: 3 | H8: 1.2 | I8: 20.6 | J8: 104.8
D9: фрукты | E9: яблоко свежее | F9: 100 | G9: 0.4 | H9: 0.4 | I9: 9.9 | J9: 44.6 | K9: 338
D11: итого | F11: =SUM(F6:F10) -> 595 | G11: =SUM(G6:G10) -> 10.9 | H11: =SUM(H6:H10) -> 9.2 | I11: =SUM(I6:I10) -> 92.9 | J11: =SUM(J6:J10) -> 497.4
A12: =A6 -> 1 | B12: =B6 -> 1 | C12: Обед | D12: закуска | E12: огурец свежий | F12: 100 | G12: 0.8 | H12: 0.1 | I12: 2.5 | J12: 14
D13: 1 блюдо | E13: суп картофельный с горохом | F13: 250 | G13: 6.2 | H13: 6 | I13: 18.8 | J13: 153.3 | K13: 102
D14: 1 блюдо | E14: суп картофельный с рисом | F14: 250 | G14: 2.6 | H14: 3.4 | I14: 16.9 | J14: 108.4 | K14: 101
D15: 2 блюдо | E15: котлеты рубленные из мяса птицы (куры) | F15: 100 | G15: 8.9 | H15: 11.7 | I15: 10.3 | J15: 188.1 | K15: 294
D16: гарнир | E16: капуста тушеная | F16: 180 | G16: 4.2 | H16: 5.1 | I16: 17.8 | J16: 136.9 | K16: 346
D17: гарнир | E17: макаронные изделия отварные | F17: 180 | G17: 6.4 | H17: 4.8 | I17: 41.1 | J17: 233.7 | K17: 309
D18: напиток | E18: напиток из плодов шиповника | F18: 200 | G18: 0.7 | H18: 0.3 | I18: 28.8 | J18: 132.5 | K18: 388
D19: хлеб бел. | E19: батон обогащенный | F19: 20 | G19: 1.5 | H19: 0.6 | I19: 10.3 | J19: 52.4
D20: хлеб черн. | E20: хлеб ржано-пшеничный обог. микронутриентами | F20: 25 | G20: 1.7 | H20: 0.2 | I20: 10.6 | J20: 51
D21: итого | F21: =SUM(F12:F20) -> 1305 | G21: =SUM(G12:G20) -> 33 | H21: =SUM(H12:H20) -> 32.2 | I21: =SUM(I12:I20) -> 157.1 | J21: =SUM(J12:J20) -> 1070.3
A22: =A6 -> 1 | B22: =B6 -> 1 | C22: Итого за день: | F22: =F11+F21 -> 1900 | G22: 43.9 | H22: 41.4 | I22: 250 | J22: 1567.7
A23: 1 | B23: 2 | C23: Завтрак | D23: гор.блюдо | E23: каша манная молочная с маслом сливочным | F23: 255 | G23: 8.5 | H23: 7.3 | I23: 43.2 | J23: 272.2 | K23: 184
D24: гор.напиток | E24: чай с лимоном | F24: 207 | G24: 0.3 | H24: 0 | I24: 15.2 | J24: 62.8 | K24: 377
D25: хлеб | E25: батон обогащенный | F25: 40 | G25: 3 | H25: 1.2 | I25: 20.6 | J25: 104.8
D26: сладкое | E26: пряники | F26: 60 | G26: 3.5 | H26: 2.8 | I26: 45 | J26: 219.6
D28: итого | F28: =SUM(F23:F27) -> 562 | G28: =SUM(G23:G27) -> 15.3 | H28: =SUM(H23:H27) -> 11.3 | I28: =SUM(I23:I27) -> 124 | J28: =SUM(J23:J27) -> 659.4
A29: =A23 -> 1 | B29: =B23 -> 2 | C29: Обед | D29: закуска | E29: огурец соленый | F29: 100 | G29: 0.8 | H29: 0.1 | I29: 1.7 | J29: 13
D30: 1 блюдо | E30: борщ с капустой и картофелем со сметаной | F30: 255 | G30: 2.7 | H30: 6.3 | I30: 12.4 | J30: 118.6 | K30: 82
D31: 1 блюдо | E31: щи из свежей капусты со сметаной | F31: 255 | G31: 2.6 | H31: 6.4 | I31: 6.9 | J31: 97.3 | K31: 87
D32: 2 блюдо | E32: жаркое по-домашнему из курицы | F32: 280 | G32: 29.9 | H32: 35.2 | I32: 27 | J32: 544.8 | K32: 258
D33: 2 блюдо | E33: рыба, запеченная с картофелем по-русски | F33: 280 | G33: 17.2 | H33: 13.2 | I33: 20.9 | J33: 269.1 | K33: 235
D34: напиток | E34: компот из свежих плодов | F34: 200 | G34: 0.2 | H34: 0.2 | I34: 27.1 | J34: 111.1 | K34: 394
D35: хлеб бел. | E35: батон обогащенный | F35: 20 | G35: 1.5 | H35: 0.6 | I35: 10.3 | J35: 52
D36: хлеб черн. | E36: хлеб ржано-пшеничный обог. микронутриентами | F36: 25 | G36: 1.7 | H36: 0.2 | I36: 10.6 | J36: 51
D37: итого | F37: =SUM(F29:F36) -> 1415 | G37: =SUM(G29:G36) -> 56.6 | H37: =SUM(H29:H36) -> 62.2 | I37: =SUM(I29:I36) -> 116.9 | J37: =SUM(J29:J36) -> 1256.9
A38: =A23 -> 1 | B38: =B23 -> 2 | C38: Итого за день: | F38: =F28+F37 -> 1977 | G38: 71.9 | H38: 73.5 | I38: 240.9 | J38: 1916.3
A39: 1 | B39: 3 | C39: Завтрак | D39: гор.блюдо | E39: омлет натуральный | F39: 140 | G39: 12.6 | H39: 21 | I39: 2.4 | J39: 249.2 | K39: 214
D40: гор.напиток | E40: чай с сахаром | F40: 200 | G40: 0.2 | H40: 0 | I40: 15 | J40: 60.5 | K40: 430
D41: хлеб | E41: батон обогащенный | F41: 60 | G41: 4.5 | H41: 1.7 | I41: 30.8 | J41: 157.2
D42: фрукты | E42: апельсин | F42: 150 | G42: 1.4 | H42: 0.3 | I42: 12.2 | J42: 64.5 | K42: 338
D43: итого | F43: =SUM(F39:F42) -> 550 | G43: =SUM(G39:G42) -> 18.7 | H43: =SUM(H39:H42) -> 23 | I43: =SUM(I39:I42) -> 60.4 | J43: =SUM(J39:J42) -> 531.4
A44: =A39 -> 1 | B44: =B39 -> 3 | C44: Обед | D44: закуска | E44: салат из квашеной капусты | F44: 100 | G44: 1.6 | H44: 5.1 | I44: 8.2 | J44: 87.7 | K44: 40
D45: 1 блюдо | E45: суп из овощей со сметаной | F45: 255 | G45: 2.4 | H45: 6.5 | I45: 11.1 | J45: 113.6 | K45: 99
D46: 1 блюдо | E46: уха | F46: 250 | G46: 7.2 | H46: 5.6 | I46: 16.9 | J46: 146.4
D47: 2 блюдо | E47: птица, тушенная в соусе | F47: 100 | G47: 14 | H47: 16.8 | I47: 3 | J47: 225 | K47: 290
D48: гарнир | E48: макаронные изделия отварные | F48: 180 | G48: 6.5 | H48: 4.8 | I48: 41.4 | J48: 235 | K48: 309
D49: гарнир | E49: каша гречневая рассыпчатая | F49: 180 | G49: 10.6 | H49: 6.8 | I49: 47.8 | J49: 294.4 | K49: 181
D50: напиток | E50: напиток из плодов шиповника | F50: 200 | G50: 0.7 | H50: 0.3 | I50: 28.8 | J50: 132.5 | K50: 388
D51: хлеб бел. | E51: батон обогащенный | F51: 20 | G51: 1.5 | H51: 0.6 | I51: 10.3 | J51: 52.4
D52: хлеб черн. | E52: хлеб ржано-пшеничный обог. микронутриентами | F52: 25 | G52: 1.7 | H52: 0.2 | I52: 10.6 | J52: 51
D53: итого | F53: =SUM(F44:F52) -> 1310 | G53: =SUM(G44:G52) -> 46.2 | H53: =SUM(H44:H52) -> 46.7 | I53: =SUM(I44:I52) -> 178.1 | J53: =SUM(J44:J52) -> 1338
A54: =A39 -> 1 | B54: =B39 -> 3 | C54: Итого за день: | F54: =F43+F53 -> 1860 | G54: 64.9 | H54: 69.7 | I54: 238.5 | J54: 1869.4
A55: 1 | B55: 4 | C55: Завтрак | D55: гор.блюдо | E55: каша овсяная со сливочным маслом | F55: 255 | G55: 10.1 | H55: 10.3 | I55: 40.9 | J55: 297.6 | K55: 184
D56: сладкое | E56: вафли | F56: 60 | G56: 1.6 | H56: 2 | I56: 39.9 | J56: 211.9
D57: гор.напиток | E57: чай с сахаром | F57: 200 | G57: 0.2 | H57: 0 | I57: 15 | J57: 60.5 | K57: 430
D58: хлеб | E58: батон обогащенный | F58: 40 | G58: 3 | H58: 1.2 | I58: 20.6 | J58: 104.8
D59: итого | F59: =SUM(F55:F58) -> 555 | G59: =SUM(G55:G58) -> 14.9 | H59: =SUM(H55:H58) -> 13.5 | I59: =SUM(I55:I58) -> 116.4 | J59: =SUM(J55:J58) -> 674.8
A60: =A55 -> 1 | B60: =B55 -> 4 | C60: Обед | D60: закуска | E60: салат из белокачанной капусты и моркови | F60: 100 | G60: 1.5 | H60: 5.1 | I60: 9.3 | J60: 89.9 | K60: 35
D61: 1 блюдо | E61: борщ с капустой и картофелем со сметаной | F61: 255 | G61: 2.7 | H61: 6.3 | I61: 12.4 | J61: 118.6 | K61: 82
D62: 1 блюдо | E62: рассольник ленинградский со сметаной | F62: 255 | G62: 2.9 | H62: 6.7 | I62: 16.6 | J62: 139.3 | K62: 96
D63: 2 блюдо | E63: биточки мясные с соусом томатным | F63: 100 | G63: 7.9 | H63: 23.9 | I63: 11.2 | J63: 291.4 | K63: 283
D64: гарнир | E64: картофельное пюре | F64: 180 | G64: 3.9 | H64: 5.3 | I64: 26.3 | J64: 168.8 | K64: 128
D65: гарнир | E65: рис припущенный | F65: 180 | G65: 4.3 | H65: 4.6 | I65: 45.2 | J65: 239.8 | K65: 305
D66: напиток | E66: напиток из плодов шиповника | F66: 200 | G66: 0.7 | H66: 0.3 | I66: 28.8 | J66: 132.5 | K66: 388
D67: хлеб бел. | E67: батон обогащенный | F67: 20 | G67: 1.5 | H67: 0.6 | I67: 10.3 | J67: 52.4
D68: хлеб черн. | E68: хлеб ржано-пшеничный обог. микронутриентами | F68: 25 | G68: 1.7 | H68: 0.2 | I68: 10.6 | J68: 51
D69: итого | F69: =SUM(F60:F68) -> 1315 | G69: =SUM(G60:G68) -> 27.1 | H69: =SUM(H60:H68) -> 53 | I69: =SUM(I60:I68) -> 170.7 | J69: =SUM(J60:J68) -> 1283.7
A70: =A55 -> 1 | B70: =B55 -> 4 | C70: Итого за день: | F70: =F59+F69 -> 1870 | G70: 42 | H70: 66.5 | I70: 287.1 | J70: 1958.5
A71: 1 | B71: 5 | C71: Завтрак | D71: гор.блюдо | E71: каша молочная "дружба" | F71: 255 | G71: 7.4 | H71: 7.9 | I71: 42.1 | J71: 269.4 | K71: 175
D72: гор.напиток | E72: какао с молоком | F72: 200 | G72: 3.8 | H72: 3 | I72: 24.5 | J72: 141.1 | K72: 382
D73: хлеб | E73: батон обогащенный | F73: 40 | G73: 3 | H73: 1.2 | I73: 20.6 | J73: 104.8
D74: фрукты | E74: груша | F74: 100 | G74: 0.4 | H74: 0.3 | I74: 10.3 | J74: 47
D75: итого | F75: =SUM(F71:F74) -> 595 | G75: =SUM(G71:G74) -> 14.6 | H75: =SUM(H71:H74) -> 12.4 | I75: =SUM(I71:I74) -> 97.5 | J75: =SUM(J71:J74) -> 562.3
A76: =A71 -> 1 | B76: =B71 -> 5 | C76: Обед | D76: закуска | E76: салат из свеклы с маслом растительным | F76: 100 | G76: 1.6 | H76: 5 | I76: 12.6 | J76: 101.3 | K76: к/к
D77: 1 блюдо | E77: суп куриный с вермишелью, картофелем | F77: 255 | G77: 3.7 | H77: 3.7 | I77: 20.2 | J77: 129.5 | K77: 100
D78: 1 блюдо | E78: щи из свежей капусты со сметаной | F78: 255 | G78: 2.6 | H78: 6.4 | I78: 6.9 | J78: 97.3 | K78: 87
D79: 2 блюдо | E79: печень по-строгановски | F79: 100 | G79: 14.5 | H79: 12.7 | I79: 3.9 | J79: 192.5 | K79: 255
D80: гарнир | E80: каша гречневая рассыпчатая | F80: 180 | G80: 10.6 | H80: 6.8 | I80: 47.8 | J80: 294.4 | K80: 181
D81: гарнир | E81: макаронные изделия отварные | F81: 180 | G81: 6.5 | H81: 4.8 | I81: 41.4 | J81: 235 | K81: 309
D82: напиток | E82: компот из смеси сухофруктов | F82: 200 | G82: 0.6 | H82: 0.1 | I82: 31.7 | J82: 131 | K82: 402
D83: хлеб бел. | E83: батон обогащенный | F83: 20 | G83: 1.5 | H83: 0.6 | I83: 10.3 | J83: 52.4
D84: хлеб черн. | E84: хлеб ржано-пшеничный обог. микронутриентами | F84: 25 | G84: 1.7 | H84: 0.2 | I84: 10.6 | J84: 51
D85: итого | F85: =SUM(F76:F84) -> 1315 | G85: =SUM(G76:G84) -> 43.3 | H85: =SUM(H76:H84) -> 40.3 | I85: =SUM(I76:I84) -> 185.4 | J85: =SUM(J76:J84) -> 1284.4
A86: =A71 -> 1 | B86: =B71 -> 5 | C86: Итого за день: | F86: =F75+F85 -> 1910 | G86: 57.9 | H86: 52.7 | I86: 282.9 | J86: 1846.7
A87: 2 | B87: 1 | C87: Завтрак | D87: гор.блюдо | E87: суп молочный с макаронными изделиями | F87: 250 | G87: 5.7 | H87: 4.9 | I87: 21.7 | J87: 155 | K87: 112
D88: гор.напиток | E88: чай с лимоном | F88: 207 | G88: 0.2 | H88: 0 | I88: 15 | J88: 61.6 | K88: 377
D89: хлеб | E89: батон обогащенный | F89: 40 | G89: 3 | H89: 1.2 | I89: 20.6 | J89: 104.8
D90: сладкое | E90: печенье | F90: 60 | G90: 4.5 | H90: 5.9 | I90: 44.6 | J90: 250.2
D91: итого | F91: =SUM(F87:F90) -> 557 | G91: =SUM(G87:G90) -> 13.4 | H91: =SUM(H87:H90) -> 12 | I91: =SUM(I87:I90) -> 101.9 | J91: =SUM(J87:J90) -> 571.6
A92: =A87 -> 2 | B92: =B87 -> 1 | C92: Обед | D92: закуска | E92: огурец свежий | F92: 100 | G92: 0.8 | H92: 0.1 | I92: 2.5 | J92: 14
D93: 1 блюдо | E93: борщ с капустой и картофелем, со сметаной | F93: 255 | G93: 2.7 | H93: 6.3 | I93: 12.4 | J93: 118.6 | K93: 82
D94: 1 блюдо | E94: суп картофельный с горохом | F94: 250 | G94: 6.2 | H94: 6 | I94: 18.8 | J94: 153.3 | K94: 102
D95: 2 блюдо | E95: голубцы ленивые | F95: 280 | G95: 20.4 | H95: 50.8 | I95: 21.5 | J95: 624.9 | K95: 306
D96: гарнир | E96: плов из птицы | F96: 280 | G96: 28.8 | H96: 37.3 | I96: 49.5 | J96: 648 | K96: 291
D97: напиток | E97: компот из свежих яблок | F97: 200 | G97: 0.2 | H97: 0.2 | I97: 27.1 | J97: 111.1 | K97: 342.1
D98: хлеб бел. | E98: батон обогащенный | F98: 20 | G98: 1.5 | H98: 0.6 | I98: 10.3 | J98: 52.4
D99: хлеб черн. | E99: хлеб ржано-пшеничный обог. микронутриентами | F99: 25 | G99: 1.7 | H99: 0.2 | I99: 10.6 | J99: 51
D100: итого | F100: =SUM(F92:F99) -> 1410 | G100: =SUM(G92:G99) -> 62.3 | H100: =SUM(H92:H99) -> 101.5 | I100: =SUM(I92:I99) -> 152.7 | J100: =SUM(J92:J99) -> 1773.3
A101: =A87 -> 2 | B101: =B87 -> 1 | C101: Итого за день: | F101: =F91+F100 -> 1967 | G101: 75.7 | H101: 113.5 | I101: 254.6 | J101: 2344.9
A102: 2 | B102: 2 | C102: Завтрак | D102: гор.блюдо | E102: каша рисовая молочная с маслом сливочным | F102: 255 | G102: 7.3 | H102: 7.6 | I102: 47.4 | J102: 287.5 | K102: 184
D103: гор.напиток | E103: чай с сахаром | F103: 200 | G103: 0.1 | H103: 0 | I103: 14.8 | J103: 59.3 | K103: 376
D104: хлеб | E104: батон обогащенный | F104: 40 | G104: 3 | H104: 1.2 | I104: 20.6 | J104: 104.8
D105: фрукты | E105: яблоко свежее | F105: 100 | G105: 0.4 | H105: 0.4 | I105: 9.9 | J105: 44.6 | K105: 338
D106: итого | F106: =SUM(F102:F105) -> 595 | G106: =SUM(G102:G105) -> 10.8 | H106: =SUM(H102:H105) -> 9.2 | I106: =SUM(I102:I105) -> 92.7 | J106: =SUM(J102:J105) -> 496.2
A107: =A102 -> 2 | B107: =B102 -> 2 | C107: Обед | D107: закуска | E107: огурец соленый | F107: 100 | G107: 0.8 | H107: 0.1 | I107: 1.7 | J107: 13
D108: 1 блюдо | E108: суп из овощей со сметаной | F108: 255 | G108: 2.4 | H108: 6.5 | I108: 11.1 | J108: 113.6 | K108: 99
D109: 1 блюдо | E109: уха | F109: 250 | G109: 7.2 | H109: 5.6 | I109: 16.9 | J109: 146.4
D110: 2 блюдо | E110: гуляш из свинины | F110: 100 | G110: 11.9 | H110: 32.3 | I110: 5.5 | J110: 361.6 | K110: 259
D111: гарнир | E111: картофельное пюре | F111: 180 | G111: 3.9 | H111: 5.7 | I111: 26.3 | J111: 171.7 | K111: 128
D112: гарнир | E112: макаронные изделия отварные | F112: 180 | G112: 6.5 | H112: 4.8 | I112: 41.4 | J112: 234.7 | K112: 309
D113: напиток | E113: компот из смеси сухофруктов | F113: 200 | G113: 0 | H113: 0 | I113: 19.4 | J113: 77.4 | K113: 349
D114: хлеб бел. | E114: батон обогащенный | F114: 20 | G114: 1.5 | H114: 0.6 | I114: 10.3 | J114: 52.4
D115: хлеб черн. | E115: хлеб ржано-пшеничный обог. микронутриентами | F115: 25 | G115: 1.7 | H115: 0.2 | I115: 10.6 | J115: 51
D116: итого | F116: =SUM(F107:F115) -> 1310 | G116: =SUM(G107:G115) -> 35.9 | H116: =SUM(H107:H115) -> 55.8 | I116: =SUM(I107:I115) -> 143.2 | J116: =SUM(J107:J115) -> 1221.8
A117: =A102 -> 2 | B117: =B102 -> 2 | C117: Итого за день: | F117: =F106+F116 -> 1905 | G117: 46.7 | H117: 65 | I117: 235.9 | J117: 1718
A118: 2 | B118: 3 | C118: Завтрак | D118: гор.блюдо | E118: каша пшенная молочная с маслом сливочным | F118: 255 | G118: 10.5 | H118: 8.5 | I118: 53.4 | J118: 261 | K118: 189
D119: гор.напиток | E119: чай с сахаром | F119: 200 | G119: 0.2 | H119: 0 | I119: 15 | J119: 60.5 | K119: 430
D120: хлеб | E120: батон обогащенный | F120: 40 | G120: 3 | H120: 1.2 | I120: 20.6 | J120: 104.8
D121: сладкое | E121: пряники | F121: 60 | G121: 3.5 | H121: 2.8 | I121: 45 | J121: 219.6
D122: итого | F122: =SUM(F118:F121) -> 555 | G122: =SUM(G118:G121) -> 17.2 | H122: =SUM(H118:H121) -> 12.5 | I122: =SUM(I118:I121) -> 134 | J122: =SUM(J118:J121) -> 645.9
A123: =A118 -> 2 | B123: =B118 -> 3 | C123: Обед | D123: закуска | E123: салат из белокачанной капусты и моркови | F123: 100 | G123: 1.5 | H123: 5.1 | I123: 9.3 | J123: 9.3 | K123: 35
D124: 1 блюдо | E124: борщ с капустой и картофелем со сметаной | F124: 255 | G124: 2.7 | H124: 6.3 | I124: 12.4 | J124: 118.6 | K124: 82
D125: 1 блюдо | E125: щи из свежей капусты со сметаной | F125: 255 | G125: 2.5 | H125: 6.4 | I125: 6.7 | J125: 95.7 | K125: 87
D126: 2 блюдо | E126: птица, тушенная в соусе | F126: 100 | G126: 14 | H126: 16.8 | I126: 3 | J126: 225 | K126: 290
D127: гарнир | E127: капуста тушеная | F127: 180 | G127: 4.2 | H127: 5.1 | I127: 17.8 | J127: 136.9 | K127: 346
D128: гарнир | E128: рис припущенный | F128: 180 | G128: 4.3 | H128: 4.6 | I128: 45.2 | J128: 239.8 | K128: 305
D129: напиток | E129: компот из свежих плодов | F129: 200 | G129: 0.2 | H129: 0.2 | I129: 27.9 | J129: 115 | K129: 394
D130: хлеб бел. | E130: батон обогащенный | F130: 20 | G130: 1.5 | H130: 0.6 | I130: 10.3 | J130: 52.4
D131: хлеб черн. | E131: хлеб ржано-пшеничный обог. микронутриентами | F131: 25 | G131: 1.7 | H131: 0.2 | I131: 10.6 | J131: 51
D132: итого | F132: =SUM(F123:F131) -> 1315 | G132: =SUM(G123:G131) -> 32.6 | H132: =SUM(H123:H131) -> 45.3 | I132: =SUM(I123:I131) -> 143.2 | J132: =SUM(J123:J131) -> 1043.7
A133: =A118 -> 2 | B133: =B118 -> 3 | C133: Итого за день: | F133: =F122+F132 -> 1870 | G133: 49.8 | H133: 57.8 | I133: 277.2 | J133: 1689.6
A134: 2 | B134: 4 | C134: Завтрак | D134: гор.блюдо | E134: каша овсяная со сливочным маслом | F134: 255 | G134: 10.1 | H134: 10.3 | I134: 40.9 | J134: 297.6 | K134: 184
D135: гор.напиток | E135: чай с сахаром и лимоном | F135: 207 | G135: 0.3 | H135: 0.1 | I135: 15.2 | J135: 62 | K135: 431
D136: хлеб | E136: батон обогащенный | F136: 40 | G136: 3 | H136: 1.2 | I136: 20.6 | J136: 104.8
D137: фрукты | E137: апельсин | F137: 100 | G137: 0.9 | H137: 0.2 | I137: 8.1 | J137: 43
D138: итого | F138: =SUM(F134:F137) -> 602 | G138: =SUM(G134:G137) -> 14.3 | H138: =SUM(H134:H137) -> 11.8 | I138: =SUM(I134:I137) -> 84.8 | J138: =SUM(J134:J137) -> 507.4
A139: =A134 -> 2 | B139: =B134 -> 4 | C139: Обед | D139: закуска | E139: салат из квашеной капусты | F139: 100 | G139: 1.6 | H139: 5.1 | I139: 8.2 | J139: 87.7 | K139: 40
D140: 1 блюдо | E140: рассольник ленинградский со сметаной | F140: 255 | G140: 2.9 | H140: 6.7 | I140: 16.6 | J140: 139.9 | K140: 96
D141: 1 блюдо | E141: суп куриный с вермишелью, картофелем | F141: 255 | G141: 3.3 | H141: 3.4 | I141: 20.2 | J141: 124.9 | K141: 100
D142: 2 блюдо | E142: котлеты рубленные из мяса птицы(куры) | F142: 100 | G142: 8.9 | H142: 11.7 | I142: 10.3 | J142: 188.1 | K142: 294
D143: гарнир | E143: макаронные изделия отварные | F143: 180 | G143: 6.5 | H143: 4.8 | I143: 41.4 | J143: 235 | K143: 309
D144: гарнир | E144: картофельное пюре | F144: 180 | G144: 3.9 | H144: 5.7 | I144: 26.3 | J144: 171.7 | K144: 128
D145: напиток | E145: компот из свежих плодов | F145: 200 | G145: 0.2 | H145: 0.2 | I145: 27.9 | J145: 115 | K145: 394
D146: хлеб бел. | E146: батон обогащенный | F146: 25 | G146: 1.9 | H146: 0.7 | I146: 12.9 | J146: 65.5
D147: хлеб черн. | E147: хлеб ржано-пшеничный обог. микронутриентами | F147: 25 | G147: 1.7 | H147: 0.2 | I147: 10.6 | J147: 51
D148: итого | F148: =SUM(F139:F147) -> 1320 | G148: =SUM(G139:G147) -> 30.9 | H148: =SUM(H139:H147) -> 38.5 | I148: =SUM(I139:I147) -> 174.4 | J148: =SUM(J139:J147) -> 1178.8
A149: =A134 -> 2 | B149: =B134 -> 4 | C149: Итого за день: | F149: =F138+F148 -> 1922 | G149: 45.2 | H149: 50.3 | I149: 259.2 | J149: 1686.2
A150: 2 | B150: 5 | C150: Завтрак | D150: гор.блюдо | E150: макаронные изделия отварные с сыром | F150: 250 | G150: 12.5 | H150: 10.8 | I150: 50.4 | J150: 349.5 | K150: 331
D151: гор.напиток | E151: чай с сахаром | F151: 200 | G151: 0.2 | H151: 0 | I151: 15 | J151: 60.5 | K151: 430
D152: хлеб | E152: батон обогащенный | F152: 40 | G152: 3 | H152: 1.2 | I152: 20.6 | J152: 104.8
D153: сладкое | E153: вафли | F153: 50 | G153: 1.3 | H153: 1.7 | I153: 33.1 | J153: 175.9
D154: итого | F154: =SUM(F150:F153) -> 540 | G154: =SUM(G150:G153) -> 17 | H154: =SUM(H150:H153) -> 13.7 | I154: =SUM(I150:I153) -> 119.1 | J154: =SUM(J150:J153) -> 690.7
A155: =A150 -> 2 | B155: =B150 -> 5 | C155: Обед | D155: закуска | E155: огурец соленый | F155: 100 | G155: 0.8 | H155: 0.1 | I155: 1.7 | J155: 13
D156: 1 блюдо | E156: суп из овощей со сметаной | F156: 255 | G156: 2.4 | H156: 6.5 | I156: 11.1 | J156: 113.6 | K156: 99
D157: 1 блюдо | E157: суп картофельный с горохом | F157: 250 | G157: 6.2 | H157: 6 | I157: 18.8 | J157: 153.3 | K157: 102
D158: 2 блюдо | E158: биточки мясные с соусом томатным | F158: 100 | G158: 7.9 | H158: 23.9 | I158: 11.2 | J158: 291 | K158: 283
D159: гарнир | E159: рис припущенный | F159: 180 | G159: 4.3 | H159: 4.6 | I159: 45.2 | J159: 239.8 | K159: 305
D160: гарнир | E160: каша гречневая рассыпчатая | F160: 180 | G160: 10.6 | H160: 6.8 | I160: 47.8 | J160: 294.4 | K160: 181
D161: напиток | E161: компот из изюма | F161: 200 | G161: 0.5 | H161: 0.1 | I161: 36.1 | J161: 147.4 | K161: 401
D162: хлеб бел. | E162: батон обогащенный | F162: 20 | G162: 1.5 | H162: 0.6 | I162: 10.3 | J162: 52.4
D163: хлеб черн. | E163: хлеб ржано-пшеничный обог. микронутриентами | F163: 30 | G163: 2 | H163: 0.3 | I163: 12.7 | J163: 61.2
D164: итого | F164: =SUM(F155:F163) -> 1315 | G164: =SUM(G155:G163) -> 36.2 | H164: =SUM(H155:H163) -> 48.9 | I164: =SUM(I155:I163) -> 194.9 | J164: =SUM(J155:J163) -> 1366.1
A165: =A150 -> 2 | B165: =B150 -> 5 | C165: Итого за день: | F165: =F154+F164 -> 1855 | G165: 53.2 | H165: 62.6 | I165: 314 | J165: 2056.8
C166: Среднее значение за период: | F166: =(F22+F38+F54+F70+F86+F101+F117+F133+F149+F165)/(IF(F22=0,0,1)+IF(F38=0,0,1)+IF(F54=0,0,1)+IF(F70=0,0,1)+IF(F86=0,0,1)+IF(F101=0,0,1)+IF(F117=0,0,1)+IF(F133=0,0,1)+IF(F149=0,0,1)+IF(F165=0,0,1)) -> 1903.6 | G166: 55.12 | H166: 65.3 | I166: 264.03 | J166: 1865.41
